fUSD/lending_fUSD_20240803
["ID","MTS","AMOUNT","RATE_DAILY","PERIOD"]
[333989745,1722666735009,-1412.03,0.00017808,2]
[333989746,1722666735020,-557.22,0.00017808,2]
[333989747,1722666735030,-500.0,0.00017808,2]
[333989748,1722666735040,-500.0,0.00017808,2]
[333989749,1722666735051,-500.0,0.00017808,2]
[333989750,1722666735060,-901.04,0.00017808,2]
[333989751,1722666735070,-1245.11,0.00017808,2]
[333989752,1722666735080,-1551.65,0.00017808,2]
[333989753,1722666735090,-500.0,0.00017808,2]
[333989754,1722666735101,-829.01,0.00017808,2]
[333989755,1722666735110,-563.09,0.00017808,2]
[333989756,1722666735121,-523.94,0.00017808,2]
[333989757,1722666735131,-1086.27,0.00017808,2]
[333989758,1722666735141,-500.0,0.00017808,2]
[333989759,1722666735151,-554.91,0.00017808,2]
[333989760,1722666735162,-783.81,0.00017808,2]
[333989761,1722666735172,-500.0,0.00017808,2]
[333989762,1722666735182,-500.0,0.00017808,2]
[333989763,1722666735193,-1346.52,0.00017808,2]
[333989764,1722666735203,-1087.56,0.00017808,2]
[333989765,1722666735217,-1404.5,0.00017808,2]
[333989766,1722666735226,-500.0,0.00017808,2]
[333989767,1722666735236,-500.0,0.00017808,2]
[333989768,1722666735246,-500.0,0.00017808,2]
[333989769,1722666735256,-1999.59,0.00017808,2]
[333989770,1722666735266,-500.0,0.00017808,2]
[333989771,1722666735277,-669.89,0.00017808,2]
[333989772,1722666735287,-500.0,0.00017808,2]
[333989773,1722666735296,-500.0,0.00017808,2]
[333989774,1722666735307,-791.15,0.00017808,2]
[333989775,1722666735317,-1652.52,0.00017808,2]
[333989776,1722666735327,-500.0,0.00017808,2]
[333989777,1722666735337,-502.81940893,0.00017808,2]
[333989778,1722666735347,-936.75,0.00017808,2]
[333989779,1722666735357,-1126.33,0.00017808,2]
[333989780,1722666735367,-500.0,0.00017808,2]
[333989781,1722666735377,-500.0,0.00017808,2]
[333989782,1722666735387,-1115.3,0.00017808,2]
[333989783,1722666735398,-1818.33,0.00017808,2]
[333989784,1722666735407,-621.62,0.00017808,2]
[333989785,1722666735417,-500.0,0.00017808,2]
[333989786,1722666735427,-814.86,0.00017808,2]
[333989787,1722666735437,-500.0,0.00017808,2]
[333989788,1722666735447,-764.75,0.00017808,2]
[333989789,1722666735456,-625.34077094,0.00017808,2]
[333989790,1722666735468,-500.0,0.00017808,2]
[333989791,1722666735478,-721.8,0.00017808,2]
[333989792,1722666735488,-500.0,0.00017808,2]
[333989793,1722666735498,-500.0,0.00017808,2]
[333989794,1722666735508,-1488.46,0.00017808,2]
[333989795,1722666735518,-500.0,0.00017808,2]
[333989796,1722666735528,-500.0,0.00017808,2]
[333989797,1722666735538,-500.0,0.00017808,2]
[333989798,1722666735548,-1556.25,0.00017808,2]
[333989799,1722666735558,-500.0,0.00017808,2]
[333989800,1722666735568,-500.0,0.00017808,2]
[333989801,1722666735578,-930.37,0.00017808,2]
[333989802,1722666735588,-541.23,0.00017808,2]
[333989803,1722666735598,-1099.96,0.00017808,2]
[333989804,1722666735608,-862.02,0.00017808,2]
[333989805,1722666735618,-782.39,0.00017808,2]
[333989806,1722666735627,-500.0,0.00017808,2]
[333989807,1722666735636,-665.68,0.00017808,2]
[333989808,1722666735647,-500.0,0.00017808,2]
[333989809,1722666735662,-500.0,0.00017808,2]
[333989810,1722666735672,-500.0,0.00017808,2]
[333989811,1722666735682,-708.64,0.00017808,2]
[333989812,1722666735693,-660.12,0.00017808,2]
[333989813,1722666735703,-500.0,0.00017808,2]
[333989814,1722666735713,-709.52,0.00017808,2]
[333989815,1722666735727,-500.0,0.00017808,2]
[333989816,1722666735740,-510.64,0.00017808,2]
[333989817,1722666735750,-500.0,0.00017808,2]
[333989818,1722666735760,-681.92,0.00017808,2]
[333989819,1722666735771,-500.0,0.00017808,2]
[333989820,1722666735783,-500.0,0.00017808,2]
[333989821,1722666735793,-500.0,0.00017808,2]
[333989822,1722666735803,-500.0,0.00017808,2]
[333989823,1722666735813,-1423.39,0.00017808,2]
[333989824,1722666735823,-465.38561233,0.00017808,2]
[333989825,1722666735833,-500.0,0.00017808,2]
[333989826,1722666735843,-500.0,0.00017808,2]
[333989827,1722666735852,-3672.91,0.00017808,2]
[333989828,1722666735864,-796.7,0.00017808,2]
[333989829,1722666735874,-500.0,0.00017808,2]
[333989830,1722666735884,-714.52,0.00017808,2]
[333989831,1722666735895,-2042.73,0.00017808,2]
[333989832,1722666735906,-500.0,0.00017808,2]
[333989833,1722666735916,-500.0,0.00017808,2]
[333989834,1722666735926,-552.5,0.00017808,2]
[333989835,1722666735936,-1054.46,0.00017808,2]
[333989836,1722666735946,-500.0,0.00017808,2]
[333989837,1722666735957,-2805.89,0.00017808,2]
[333989838,1722666735966,-675.88,0.00017808,2]
[333989839,1722666735976,-1433.51,0.00017808,2]
[333989840,1722666735987,-1088.81,0.00017808,2]
[333989841,1722666735997,-500.0,0.00017808,2]
[333989842,1722666736007,-4007.83,0.00017808,2]
[333989843,1722666736017,-762.84,0.00017808,2]
[333989844,1722666736027,-500.0,0.00017808,2]
[333989845,1722666736037,-3217.66,0.00017808,2]
[333989846,1722666736047,-500.0,0.00017808,2]
[333989847,1722666736057,-2200.75,0.00017808,2]
[333989848,1722666736066,-951.76,0.00017808,2]
[333989849,1722666736076,-1702.58,0.00017808,2]
[333989850,1722666736086,-500.0,0.00017808,2]
[333989851,1722666736096,-2092.77,0.00017808,2]
[333989852,1722666736106,-652.04,0.00017808,2]
[333989853,1722666736116,-500.0,0.00017808,2]
[333989854,1722666736125,-500.0,0.00017808,2]
[333989855,1722666736135,-500.0,0.00017808,2]
[333989856,1722666736144,-5244.42,0.00017808,2]
[333989857,1722666736154,-693.09,0.00017808,2]
[333989858,1722666736164,-761.36,0.00017808,2]
[333989859,1722666736174,-2061.72,0.00017808,2]
[333989860,1722666736184,-605.49943413,0.00017808,2]
[333989861,1722666736195,-620.6178871,0.00017808,2]
[333989862,1722666736204,-2038.36,0.00017808,2]
[333989863,1722666736214,-4346.28,0.00017808,2]
[333989864,1722666736227,-1475.27,0.00017808,2]
[333989865,1722666736238,-710.45,0.00017808,2]
[333989866,1722666736248,-744.05,0.00017808,2]
[333989867,1722666736258,-1223.68,0.00017808,2]
[333989868,1722666736268,-511.82223411,0.00017808,2]
[333989869,1722666736279,-1359.7,0.00017808,2]
[333989870,1722666736289,-500.0,0.00017808,2]
[333989871,1722666736299,-4500.27,0.00017808,2]
[333989872,1722666736310,-500.0,0.00017808,2]
[333989873,1722666736319,-1729.93,0.00017808,2]
[333989874,1722666736330,-11630.47,0.00017808,2]
[333989875,1722666736340,-842.12,0.00017808,2]
[333989876,1722666736350,-7815.4,0.00017808,2]
[333989877,1722666736360,-1992.28,0.00017808,2]
[333989878,1722666736370,-500.0,0.00017808,2]
[333989879,1722666736379,-872.75,0.00017808,2]
[333989880,1722666736389,-1230.65,0.00017808,2]
[333989881,1722666736399,-1652.65,0.00017808,2]
[333989882,1722666736510,-500.0,0.00017808,2]
[333989883,1722666736520,-500.0,0.00017808,2]
[333989884,1722666736531,-1417.26,0.00017808,2]
[333989885,1722666736541,-500.0,0.00017808,2]
[333989886,1722666736551,-24317.71,0.00017808,2]
[333989887,1722666736561,-302.76928361,0.00017808,2]
[333989888,1722666736572,-500.0,0.00017808,2]
[333989889,1722666736581,-8359.0,0.00017808,2]
[333989890,1722666736591,-1381.62,0.00017808,2]
[333989891,1722666736601,-2959.52,0.00017808,2]
[333989892,1722666736610,-500.0,0.00017808,2]
[333989893,1722666736620,-500.0,0.00017808,2]
[333989894,1722666736630,-1125.68,0.00017808,2]
[333989895,1722666736640,-2625.72,0.00017808,2]
[333989896,1722666736656,-500.0,0.00017808,2]
[333989897,1722666736668,-541.08,0.00017808,2]
[333989898,1722666736678,-1606.59,0.00017808,2]
[333989899,1722666736687,-4129.44,0.00017808,2]
[333989900,1722666736698,-500.0,0.00017808,2]
[333989901,1722666736707,-765.03,0.00017808,2]
[333989902,1722666736719,-500.0,0.00017808,2]
[333989903,1722666736731,-1071.89,0.00017808,2]
[333989904,1722666736740,-8009.82,0.00017808,2]
[333989905,1722666736750,-500.0,0.00017808,2]
[333989906,1722666736760,-500.0,0.00017808,2]
[333989907,1722666736769,-4309.68,0.00017808,2]
[333989908,1722666736779,-677.22,0.00017808,2]
[333989909,1722666736788,-500.0,0.00017808,2]
[333989910,1722666736798,-500.0,0.00017808,2]
[333989911,1722666736807,-500.0,0.00017808,2]
[333989912,1722666736816,-3498.32,0.00017808,2]
[333989913,1722666736826,-1008.21,0.00017808,2]
[333989914,1722666736836,-500.0,0.00017808,2]
[333989915,1722666736847,-2091.29,0.00017808,2]
[333989916,1722666736856,-678.45,0.00017808,2]
[333989917,1722666736866,-152.08433484,0.00017808,2]
[333989918,1722666736876,-500.0,0.00017808,2]
[333989919,1722666736885,-3261.4,0.00017808,2]
[333989920,1722666736896,-500.0,0.00017808,2]
[333989921,1722666736906,-2329.21,0.00017808,2]
[333989922,1722666736916,-1982.62,0.00017808,2]
[333989923,1722666736926,-6585.94,0.00017808,2]
[333989924,1722666736936,-532.0,0.00017808,2]
[333989925,1722666736946,-2347.25,0.00017808,2]
[333989926,1722666736956,-3237.49,0.00017808,2]
[333989927,1722666736966,-595.79,0.00017808,2]
[333989928,1722666736977,-1438.93,0.00017808,2]
[333989929,1722666736987,-500.0,0.00017808,2]
[333989930,1722666736998,-1558.03,0.00017808,2]
[333989931,1722666737008,-12013.62,0.00017808,2]
[333989932,1722666737018,-3194.48,0.00017808,2]
[333989933,1722666737027,-2240.39,0.00017808,2]
[333989934,1722666737037,-1275.84,0.00017808,2]
[333989935,1722666737047,-1245.88,0.00017808,2]
[333989936,1722666737056,-869.05,0.00017808,2]
[333989937,1722666737066,-500.0,0.00017808,2]
[333989938,1722666737076,-500.0,0.00017808,2]
[333989939,1722666737086,-3558.7,0.00017808,2]
[333989940,1722666737095,-1516.63,0.00017808,2]
[333989941,1722666737105,-2444.23,0.00017808,2]
[333989942,1722666737115,-4848.71,0.00017808,2]
[333989943,1722666737125,-2528.58,0.00017808,2]
[333989944,1722666737135,-7111.63,0.00017808,2]
[333989945,1722666737145,-1234.51,0.00017808,2]
[333989946,1722666737155,-500.0,0.00017808,2]
[333989947,1722666737164,-1577.42,0.00017808,2]
[333989948,1722666737173,-3976.74,0.00017808,2]
[333989949,1722666737183,-914.84,0.00017808,2]
[333989950,1722666737193,-1179.29,0.00017808,2]
[333989951,1722666737203,-522.63,0.00017808,2]
[333989952,1722666737213,-2341.98,0.00017808,2]
[333989953,1722666737225,-2827.3,0.00017808,2]
[333989954,1722666737235,-1379.48,0.00017808,2]
[333989955,1722666737245,-13569.7,0.00017808,2]
[333989956,1722666737255,-1254.92,0.00017808,2]
[333989957,1722666737264,-989.03,0.00017808,2]
[333989958,1722666737274,-867.22,0.00017808,2]
[333989959,1722666737283,-1520.15,0.00017808,2]
[333989960,1722666737293,-165.94298332,0.00017808,2]
[333989961,1722666737303,-4544.83,0.00017808,2]
[333989962,1722666737312,-1100.73,0.00017808,2]
[333989963,1722666737322,-797.96,0.00017808,2]
[333989964,1722666737331,-500.0,0.00017808,2]
[333989965,1722666737341,-799.61,0.00017808,2]
[333989966,1722666737350,-500.0,0.00017808,2]
[333989967,1722666737359,-5638.64,0.00017808,2]
[333989968,1722666737369,-1242.0,0.00017808,2]
[333989969,1722666737379,-500.0,0.00017808,2]
[333989970,1722666737389,-500.0,0.00017808,2]
[333989971,1722666737398,-500.0,0.00017808,2]
[333989972,1722666737408,-941.33,0.00017808,2]
[333989973,1722666737418,-1488.46,0.00017808,2]
[333989974,1722666737427,-560.97,0.00017808,2]
[333989975,1722666737437,-500.0,0.00017808,2]
[333989976,1722666737447,-920.3,0.00017808,2]
[333989977,1722666737458,-500.0,0.00017808,2]
[333989978,1722666737468,-3017.99,0.00017808,2]
[333989979,1722666737478,-500.0,0.00017808,2]
[333989980,1722666737488,-1976.61,0.00017808,2]
[333989981,1722666737497,-980.35,0.00017808,2]
[333989982,1722666737507,-2347.93,0.00017808,2]
[333989983,1722666737516,-500.0,0.00017808,2]
[333989984,1722666737526,-3028.02,0.00017808,2]
[333989985,1722666737536,-500.0,0.00017808,2]
[333989986,1722666737546,-1182.86,0.00017808,2]
[333989987,1722666737555,-1315.97,0.00017808,2]
[333989988,1722666737565,-663.52,0.00017808,2]
[333989989,1722666737575,-1429.57,0.00017808,2]
[333989990,1722666737585,-1009.6,0.00017808,2]
[333989991,1722666737594,-500.0,0.00017808,2]
[333989992,1722666737604,-535.59,0.00017808,2]
[333989993,1722666737614,-1659.64,0.00017808,2]
[333989994,1722666737624,-2820.52,0.00017808,2]
[333989995,1722666737633,-2112.36,0.00017808,2]
[333989996,1722666737644,-4031.55,0.00017808,2]
[333989997,1722666737657,-2096.17,0.00017808,2]
[333989998,1722666737667,-1049.02,0.00017808,2]
[333989999,1722666737677,-204.89,0.00017808,2]
[333990000,1722666737686,-10150.27,0.00017808,2]
[333990001,1722666737696,-500.0,0.00017808,2]
[333990002,1722666737705,-1206.49,0.00017808,2]
[333990003,1722666737715,-1122.59,0.00017808,2]
[333990004,1722666737725,-576.06,0.00017808,2]
[333990005,1722666737737,-1726.0,0.00017808,2]
[333990006,1722666737748,-793.05,0.00017808,2]
[333990007,1722666737758,-3672.81,0.00017808,2]
[333990008,1722666737768,-3286.16,0.00017808,2]
[333990009,1722666737778,-1612.0,0.00017808,2]
[333990010,1722666737788,-3453.65,0.00017808,2]
[333990011,1722666737797,-500.0,0.00017808,2]
[333990012,1722666737807,-15160.97,0.00017808,2]
[333990013,1722666737816,-500.0,0.00017808,2]
[333990014,1722666737827,-1516.13,0.00017808,2]
[333990015,1722666737836,-1029.84,0.00017808,2]
[333990016,1722666737846,-1177.76,0.00017808,2]
[333990017,1722666737856,-500.0,0.00017808,2]
[333990018,1722666737866,-681.33,0.00017808,2]
[333990019,1722666737875,-7716.14,0.00017808,2]
[333990020,1722666737885,-500.0,0.00017808,2]
[333990021,1722666737895,-2110.03,0.00017808,2]
[333990022,1722666737905,-1577.4,0.00017808,2]
[333990023,1722666737915,-5511.15,0.00017808,2]
[333990024,1722666737924,-500.0,0.00017808,2]
[333990025,1722666737934,-1050.57,0.00017808,2]
[333990026,1722666737943,-797.55,0.00017808,2]
[333990027,1722666737953,-2534.68,0.00017808,2]
[333990028,1722666737963,-500.0,0.00017808,2]
[333990029,1722666737974,-2306.35,0.00017808,2]
[333990030,1722666737985,-3191.49,0.00017808,2]
[333990031,1722666737994,-681.76,0.00017808,2]
[333990032,1722666738004,-500.0,0.00017808,2]
[333990033,1722666738014,-517.29,0.00017808,2]
[333990034,1722666738023,-500.0,0.00017808,2]
[333990035,1722666738033,-2590.66,0.00017808,2]
[333990036,1722666738043,-2269.33,0.00017808,2]
[333990037,1722666738053,-500.0,0.00017808,2]
[333990038,1722666738064,-571.15,0.00017808,2]
[333990039,1722666738074,-4486.63,0.00017808,2]
[333990040,1722666738084,-1395.7,0.00017808,2]
[333990041,1722666738094,-354.1932868,0.00017808,2]
[333990042,1722666738103,-927.9,0.00017808,2]
[333990043,1722666738113,-2172.92,0.00017808,2]
[333990044,1722666738123,-642.08,0.00017808,2]
[333990045,1722666738133,-500.0,0.00017808,2]
[333990046,1722666738142,-1875.47,0.00017808,2]
[333990047,1722666738152,-500.0,0.00017808,2]
[333990048,1722666738162,-551.94,0.00017808,2]
[333990049,1722666738172,-1703.59,0.00017808,2]
[333990050,1722666738182,-1746.66,0.00017808,2]
[333990051,1722666738192,-500.0,0.00017808,2]
[333990052,1722666738202,-784.82,0.00017808,2]
[333990053,1722666738212,-591.2,0.00017808,2]
[333990054,1722666738223,-849.08,0.00017808,2]
[333990055,1722666738238,-3768.21,0.00017808,2]
[333990056,1722666738249,-508.86384658,0.00017808,2]
[333990057,1722666738260,-500.0,0.00017808,2]
[333990058,1722666738270,-876.21,0.00017808,2]
[333990059,1722666738281,-400.0,0.00017808,2]
[333990060,1722666738291,-1805.68,0.00017808,2]
[333990061,1722666738301,-500.0,0.00017808,2]
[333990062,1722666738311,-3769.02,0.00017808,2]
[333990063,1722666738320,-2265.81,0.00017808,2]
[333990064,1722666738330,-500.0,0.00017808,2]
[333990065,1722666738340,-500.0,0.00017808,2]
[333990066,1722666738350,-824.9,0.00017808,2]
[333990067,1722666738361,-1540.49,0.00017808,2]
[333990068,1722666738371,-614.94,0.00017808,2]
[333990069,1722666738382,-3464.14,0.00017808,2]
[333990070,1722666738392,-3761.09,0.00017808,2]
[333990071,1722666738403,-5639.15,0.00017808,2]
[333990072,1722666738413,-2239.27,0.00017808,2]
[333990073,1722666738423,-514.55190286,0.00017808,2]
[333990074,1722666738434,-617.86,0.00017808,2]
[333990075,1722666738445,-650.38,0.00017808,2]
[333990076,1722666738455,-991.2,0.00017808,2]
[333990077,1722666738465,-3794.93,0.00017808,2]
[333990078,1722666738475,-500.0,0.00017808,2]
[333990079,1722666738485,-6154.67,0.00017808,2]
[333990080,1722666738496,-610.3,0.00017808,2]
[333990081,1722666738506,-1846.35,0.00017808,2]
[333990082,1722666738516,-2062.14,0.00017808,2]
[333990083,1722666738527,-7006.55,0.00017808,2]
[333990084,1722666738538,-500.0,0.00017808,2]
[333990085,1722666738548,-500.0,0.00017808,2]
[333990086,1722666738559,-654.74,0.00017808,2]
[333990087,1722666738569,-2260.06,0.00017808,2]
[333990088,1722666738579,-1671.01,0.00017808,2]
[333990089,1722666738589,-810.7,0.00017808,2]
[333990090,1722666738599,-2426.51,0.00017808,2]
[333990091,1722666738610,-500.0,0.00017808,2]
[333990092,1722666738620,-9425.49,0.00017808,2]
[333990093,1722666738630,-706.97,0.00017808,2]
[333990094,1722666738640,-500.0,0.00017808,2]
[333990095,1722666738651,-1017.09,0.00017808,2]
[333990096,1722666738665,-9197.15,0.00017808,2]
[333990097,1722666738675,-1431.9,0.00017808,2]
[333990098,1722666738685,-18960.81,0.00017808,2]
[333990099,1722666738695,-500.0,0.00017808,2]
[333990100,1722666738705,-500.0,0.00017808,2]
[333990101,1722666738716,-803.92,0.00017808,2]
[333990102,1722666738726,-2204.57,0.00017808,2]
[333990103,1722666738738,-666.06,0.00017808,2]
[333990104,1722666738749,-525.11133108,0.00017808,2]
[333990105,1722666738759,-684.75,0.00017808,2]
[333990106,1722666738770,-1958.7,0.00017808,2]
[333990107,1722666738781,-2126.17,0.00017808,2]
[333990108,1722666738790,-2113.7,0.00017808,2]
[333990109,1722666738802,-585.33409397,0.00017808,2]
[333990110,1722666738813,-876.59,0.00017808,2]
[333990111,1722666738824,-580.14,0.00017808,2]
[333990112,1722666738835,-3958.71,0.00017808,2]
[333990113,1722666738846,-1366.09,0.00017808,2]
[333990114,1722666738858,-1636.82,0.00017808,2]
[333990115,1722666738869,-3068.73,0.00017808,2]
[333990116,1722666738880,-1915.63,0.00017808,2]
[333990117,1722666738891,-2609.6,0.00017808,2]
[333990118,1722666738902,-520.10425934,0.00017808,2]
[333990119,1722666738913,-500.0,0.00017808,2]
[333990120,1722666738925,-1156.97,0.00017808,2]
[333990121,1722666738935,-1837.83,0.00017808,2]
[333990122,1722666738946,-500.0,0.00017808,2]
[333990123,1722666738958,-735.07,0.00017808,2]
[333990124,1722666738969,-583.63,0.00017808,2]
[333990125,1722666738979,-664.37,0.00017808,2]
[333990126,1722666738989,-2322.65,0.00017808,2]
[333990127,1722666738999,-651.05,0.00017808,2]
[333990128,1722666739010,-500.0,0.00017808,2]
[333990129,1722666739020,-1304.49,0.00017808,2]
[333990130,1722666739031,-500.0,0.00017808,2]
[333990131,1722666739041,-1780.87,0.00017808,2]
[333990132,1722666739052,-3594.13,0.00017808,2]
[333990133,1722666739062,-1004.22,0.00017808,2]
[333990134,1722666739073,-500.0,0.00017808,2]
[333990135,1722666739083,-2603.67,0.00017808,2]
[333990136,1722666739093,-296.75899954,0.00017828,2]
[333990137,1722666739104,-150.5,0.00017836,30]
[333990138,1722666739114,-264.18,0.0001784,2]
[333990139,1722666739124,-356.11,0.0001784,2]
[333990140,1722666739135,-356.11,0.0001784,2]
[333990141,1722666739145,-300.0,0.0001784,2]
[333990142,1722666739155,-150.0,0.0001784,2]
[333990143,1722666739165,-359.17,0.0001784,2]
[333990144,1722666739175,-150.0,0.0001784,2]
[333990145,1722666739185,-151.06,0.0001784,2]
[333990146,1722666739195,-356.11,0.0001784,2]
[333990147,1722666739205,-150.0,0.0001784,2]
[333990148,1722666739215,-150.0,0.0001784,2]
[333990149,1722666739226,-356.11,0.0001784,2]
[333990150,1722666739236,-150.0,0.0001784,2]
[333990151,1722666739246,-356.11,0.0001784,2]
[333990152,1722666739257,-173.872857,0.00017842,2]
[333990153,1722666739268,-256.06295204,0.00017842,2]
[333990154,1722666739278,-150.5,0.00017846,30]
[333990155,1722666739288,-150.5,0.00017856,30]
[333990156,1722666739298,-160.52601118,0.00017866,2]
[333990157,1722666739309,-700.0,0.0001787,2]
[333990158,1722666739319,-700.0,0.0001787,2]
[333990159,1722666739329,-500.0,0.0001787,2]
[333990160,1722666739340,-500.0,0.0001787,2]
[333990161,1722666739350,-301.56,0.00017879,2]
[333990162,1722666739361,-150.0,0.00017879,2]
[333990163,1722666739371,-850.54,0.00017879,2]
[333990164,1722666739385,-171.18,0.00017879,2]
[333990165,1722666739396,-530.37,0.00017879,2]
[333990166,1722666739406,-236050.01288893,0.0001788,2]
[333990167,1722666739416,-408394.28087038,0.0001788,2]
[333990168,1722666739426,-446794.23856908,0.0001788,2]
[333990169,1722666739436,-254802.52674981,0.0001788,2]
[333990170,1722666739447,-37113.91681464,0.0001788,2]
[333990171,1722666739456,-851.74,0.00017884,2]
[333990172,1722666739467,-500.0,0.00017888,2]
[333990173,1722666739477,-277.19298035,0.00017898,2]
[333990174,1722666739488,-155.50531897,0.00017898,2]
[333990175,1722666739499,-211.848048,0.00017898,2]
[333990176,1722666739509,-155.11463907,0.00017898,2]
[333990177,1722666739519,-155.19830243,0.00017898,2]
[333990178,1722666739530,-155.0,0.00017898,2]
[333990179,1722666739540,-192.92679884,0.00017898,2]
[333990180,1722666739551,-156.16715443,0.00017898,2]
[333990181,1722666739562,-400.0,0.00017898,2]
[333990182,1722666739573,-162.08791848,0.00017898,2]
[333990183,1722666739583,-476.52703085,0.00017898,2]
[333990184,1722666739594,-203.68497598,0.00017898,2]
[333990185,1722666739604,-162.85181728,0.00017898,2]
[333990186,1722666739615,-299.7969327,0.00017898,2]
[333990187,1722666739625,-247.84861691,0.00017898,2]
[333990188,1722666739635,-157.06686395,0.00017898,2]
[333990189,1722666739646,-400.85725149,0.00017898,2]
[333990190,1722666739660,-255.63060297,0.00017898,2]
[333990191,1722666739670,-297.22909311,0.00017898,2]
[333990192,1722666739681,-165.36567453,0.00017898,2]
[333990193,1722666739691,-531.81153519,0.00017898,2]
[333990194,1722666739701,-504.7383044,0.000179,4]
[333990195,1722666739712,-1017.8483,0.000179,2]
[333990196,1722666739723,-214.0,0.0001794,2]
[333990197,1722666739735,-1339.0,0.0001797,120]
[333990198,1722666739745,-700.0,0.0001797,2]
[333990199,1722666739755,-183.189171,0.00017971,2]
[333990200,1722666739765,-175.910904,0.00017971,2]
[333990201,1722666739774,-171.653808,0.00017971,2]
[333990202,1722666739784,-245.11283,0.00017972,2]
[333990203,1722666739794,-323.811851,0.00017972,2]
[333990204,1722666739803,-3715.052926,0.00017972,2]
[333990205,1722666739812,-354.400775,0.00017972,2]
[333990206,1722666739822,-14547.490637,0.00017972,2]
[333990207,1722666739831,-17206.65622,0.00017972,2]
[333990208,1722666739841,-207.752414,0.00017972,2]
[333990209,1722666739852,-651.656202,0.00017972,2]
[333990210,1722666739862,-840.837562,0.00017972,2]
[333990211,1722666739872,-1457.984716,0.00017972,2]
[333990212,1722666739882,-1393.789355,0.00017972,2]
[333990213,1722666739891,-2343.964015,0.00017972,2]
[333990214,1722666739901,-731.610229,0.00017972,2]
[333990215,1722666739911,-706.352109,0.00017972,2]
[333990216,1722666739920,-168.224889,0.00017972,2]
[333990217,1722666739930,-766.2961,0.00017972,2]
[333990218,1722666739940,-739.788836,0.00017972,2]
[333990219,1722666739950,-204.243847,0.00017972,2]
[333990220,1722666739959,-345.044234,0.00017972,2]
[333990221,1722666739969,-1339.0,0.0001798,120]
[333990222,1722666739979,-284.742637,0.00017988,2]
[333990223,1722666739989,-467.643079,0.00017988,2]
[333990224,1722666739999,-392.691139,0.00017988,2]
[333990225,1722666740008,-201.737184,0.00017988,2]
[333990226,1722666740018,-9814.464715,0.00017988,2]
[333990227,1722666740028,-29587.127974,0.00017988,2]
[333990228,1722666740037,-676.529965,0.00017988,2]
[333990229,1722666740047,-532.656803,0.00017988,2]
[333990230,1722666740057,-220.238779,0.00017988,2]
[333990231,1722666740067,-502.456116,0.00017988,2]
[333990232,1722666740076,-456.528838,0.00017988,2]
[333990233,1722666740088,-441.256191,0.00017988,2]
[333990234,1722666740099,-5619.454371,0.00017988,2]
[333990235,1722666740109,-475.552508,0.00017988,2]
[333990236,1722666740119,-272.306319,0.00017988,2]
[333990237,1722666740129,-8127.573152,0.00017988,2]
[333990238,1722666740140,-2855.804423,0.00017988,2]
[333990239,1722666740151,-11048.99179,0.00017988,2]
[333990240,1722666740162,-1339.0,0.0001799,120]
[333990241,1722666740171,-371.71125404,0.00018,2]
[333990242,1722666740182,-535.41646623,0.00018,2]
[333990243,1722666740191,-203.0,0.00018,2]
[333990244,1722666740201,-200.0,0.00018,2]